bitfinex-derivatives/quotes_SOLF0:USTF0_20250817
["timestamp","ask_amount","ask_price","bid_price","bid_amount"]
[1755450635202,2.92,193.56,193.53,0.03470113]
[1755450635598,2.92,193.56,193.54,2.88]
[1755450635806,2.92,193.55,193.54,2.88]
[1755450636807,2.92,193.59,193.54,2.88]
[1755450637006,8.44887855,193.58,193.55,2.88]
[1755450637202,347.14,193.63,193.55,2.88]
[1755450637504,2.92,193.61,193.55,2.88]
[1755450637704,2.92,193.59,193.56,2.88]
[1755450637911,2.92,193.57,193.56,2.88]
[1755450638109,2.92,193.57,193.54,2.61554981]
[1755450638311,2.92,193.57,193.56,2.91666069]
[1755450638811,2.92,193.57,193.56,0.03666069]
[1755450639310,7.66310738,193.57,193.56,0.03666069]
[1755450640401,7.66310738,193.57,193.56,2.91666069]
[1755450641413,7.66310738,193.57,193.56,0.03666069]
[1755450644313,2.92,193.57,193.56,0.03666069]
[1755450644511,7.66027812,193.57,193.56,0.03666069]
[1755450649225,11.36385696,193.57,193.56,0.03666069]
[1755450649411,7.66027812,193.57,193.56,2.79666069]
[1755450653623,7.66189248,193.57,193.56,2.79666069]
[1755450654216,2.92,193.57,193.56,2.79666069]
[1755450654417,7.66140099,193.57,193.56,2.79666069]
[1755450656124,11.36517813,193.57,193.56,2.79666069]
[1755450656719,11.36495461,193.57,193.56,2.79666069]
[1755450659732,11.36427209,193.57,193.56,2.79666069]
[1755450660921,4.74049495,193.57,193.56,2.79666069]
[1755450661125,2.86,193.65,193.56,5.4122105]
[1755450661317,126.82,193.66,193.56,5.4122105]
[1755450661318,2.86,193.63,193.57,2.76]
[1755450661522,11.30261512,193.62,193.57,2.76]
[1755450661725,4.74210799,193.61,193.57,2.76]
[1755450661925,2.86,193.6,193.57,2.76]
[1755450662728,126.82,193.66,193.57,2.76]
[1755450662924,2.86,193.62,193.57,2.76]
[1755450663128,2.86,193.6,193.57,2.76]
[1755450664431,2.86,193.65,193.57,2.76]
[1755450664631,2.86,193.63,193.57,2.76]
[1755450664839,2.86,193.64,193.6,2.76]
[1755450666031,2.86,193.64,193.6,2.7958695]
[1755450667130,2.86,193.66,193.6,2.7958695]
[1755450667333,2.86,193.65,193.6,2.7958695]
[1755450667933,2.86,193.7,193.63,2.76]
[1755450668129,2.86,193.68,193.63,2.76]
[1755450668438,2.86,193.66,193.63,2.76]
[1755450668836,2.86,193.66,193.64,0.03624219]
[1755450669039,2.86,193.66,193.65,2.76]
[1755450674735,2.86,193.73,193.65,2.76]
[1755450675042,2.86,193.71,193.65,2.76]
[1755450675345,2.86,193.69,193.65,2.76]
[1755450679338,126.62,193.74,193.64,0.03624219]
[1755450679531,2.79,193.72,193.65,2.76]
[1755450679731,2.79,193.7,193.65,2.76]
[1755450682337,2.79,193.74,193.65,2.76]
[1755450682532,8.40209862,193.73,193.65,2.76]
[1755450682736,127.49866749,193.75,193.65,2.76]
[1755450682737,8.40209862,193.72,193.65,2.76]
[1755450683038,2.79,193.7,193.65,2.76]
[1755450683232,2.79,193.7,193.66,2.76]
[1755450684037,2.79,193.7,193.66,2.79402108]
[1755450684747,2.79,193.7,193.67,2.76]
[1755450686143,2.79,193.74,193.66,0.03402108]
[1755450686440,2.79,193.72,193.66,0.03402108]
[1755450686637,2.79,193.7,193.66,0.03402108]
[1755450686844,2.79,193.7,193.66,2.79402108]
[1755450687736,2.79,193.7,193.66,0.03402108]
[1755450687939,127.49866749,193.75,193.66,0.03402108]
[1755450687940,4.7053762,193.69,193.66,0.03402108]
[1755450688138,4.7053762,193.68,193.66,0.03402108]
[1755450688336,2.79,193.67,193.66,0.03402108]
[1755450689243,7.49523298,193.67,193.66,2.79402108]
[1755450689944,7.49584221,193.67,193.66,0.03402108]
[1755450696449,11.18291389,193.67,193.66,0.03402108]
[1755450697041,8.91291389,193.67,193.56,2.76]
[1755450697241,8.91291389,193.67,193.45,10.3328]
[1755450697242,2.79,193.63,193.53,2.76]
[1755450697448,2.79,193.61,193.53,2.76]
[1755450697647,2.79,193.59,193.53,2.76]
[1755450697938,8.39291389,193.58,193.5,2.76]
[1755450698143,126.54,193.64,193.53,2.76]
[1755450698345,8.36805306,193.63,193.53,2.76]
[1755450698547,0.03624659,193.56,193.53,2.76]
[1755450698743,2.79,193.6,193.53,2.76]
[1755450699144,0.03916391,193.56,193.53,2.76]
[1755450700053,2.82916391,193.56,193.54,2.76]
[1755450700852,0.03916391,193.56,193.55,2.76]
[1755450701253,2.61237212,193.63,193.55,2.76]
[1755450701548,0.03348827,193.57,193.55,2.76]
[1755450701748,2.79,193.56,193.55,2.76]
[1755450703050,0.03675338,193.57,193.55,2.76]
[1755450703252,2.82675338,193.57,193.55,2.76]
[1755450703946,2.79,193.56,193.55,2.76]
[1755450704851,0.03675338,193.57,193.55,2.76]
[1755450705053,2.79,193.56,193.51,5.1649]
[1755450705650,2.79,193.56,193.52,2.76]
[1755450706457,0.03675338,193.57,193.52,2.76]
[1755450706649,2.79,193.55,193.52,2.76]
[1755450707250,0.03675338,193.57,193.52,2.76]
[1755450707555,2.79,193.56,193.52,2.76]
[1755450708151,3.02,193.55,193.52,2.76]
[1755450708856,3.02,193.56,193.51,2.79]
[1755450714263,3.02,193.56,193.53,1.67349836]
[1755450714450,3.02,193.56,193.54,2.79]
[1755450715958,3.02,193.56,193.53,4.46349836]
[1755450717154,3.02,193.56,193.54,2.79]
[1755450719562,3.02,193.56,193.55,2.79]
[1755450722357,3.02,193.56,193.54,2.79]
[1755450722964,3.02,193.56,193.55,2.79]
[1755450724764,3.02,193.56,193.54,2.79]
[1755450725059,3.02,193.56,193.55,2.79]
[1755450726760,0.03675338,193.57,193.54,2.79]
[1755450726969,3.05675338,193.57,193.54,2.79]
[1755450727559,0.03675338,193.57,193.54,2.79]
[1755450728362,3.02,193.56,193.54,2.79]
[1755450729067,3.02,193.56,193.55,1.67349836]
[1755450729267,3.02,193.56,193.55,4.46349836]
[1755450732674,3.02,193.56,193.55,2.79]
[1755450734975,7.71524333,193.56,193.55,2.79]
[1755450735563,7.71649705,193.56,193.55,2.79]
[1755450735970,3.02,193.56,193.55,2.79]
[1755450736273,7.71708651,193.56,193.55,2.79]
[1755450738072,4.69708651,193.56,193.53,2.79]
[1755450738278,7.43708651,193.56,193.55,2.79]
[1755450739166,11.13753045,193.56,193.55,2.79]
[1755450744175,6.44044394,193.56,193.55,2.79]
[1755450744676,11.15844379,193.56,193.55,2.79]
[1755450745075,11.1585022,193.56,193.55,2.79]
[1755450750978,11.16528978,193.56,193.55,2.79]
[1755450753478,6.44723152,193.56,193.55,2.79]
[1755450753678,11.16534549,193.56,193.55,2.79]
[1755450754191,11.16534891,193.56,193.55,2.79]
[1755450756580,6.44723152,193.56,193.55,2.79]
[1755450756783,11.1661341,193.56,193.55,2.79]
[1755450757981,11.1661341,193.56,193.52,1.67349836]
[1755450758179,2.74,193.54,193.53,2.79]
[1755450758380,11.1661341,193.54,193.53,2.79]
[1755450759780,11.1661341,193.54,193.46,8.6463525]
[1755450759781,8.4261341,193.54,193.46,2.79]
[1755450759980,8.42676805,193.53,193.51,2.79]
[1755450760187,7.45890258,193.52,193.51,2.79]
[1755450762783,7.45748019,193.52,193.51,2.79]
[1755450763176,2.74,193.52,193.51,2.79]
[1755450763381,7.45732004,193.52,193.51,2.79]
[1755450766591,2.74,193.51,193.5,1.67349836]
[1755450766780,2.74,193.51,193.5,4.46349836]
[1755450769986,0.03644447,193.53,193.5,4.46349836]
[1755450770187,4.71598673,193.52,193.51,2.93]
[1755450770688,7.62598673,193.52,193.51,2.93]
[1755450771392,7.62598673,193.52,193.51,4.60349836]
[1755450771893,7.62597112,193.52,193.51,4.60349836]
[1755450772493,7.62593969,193.52,193.51,4.60349836]
[1755450774488,4.71593969,193.52,193.51,4.60349836]
[1755450774688,0.03644447,193.53,193.52,2.93]
[1755450775394,0.03644447,193.53,193.52,1.67349836]
[1755450775588,0.03644447,193.53,193.52,4.60349836]
[1755450776896,2.94644447,193.53,193.52,4.60349836]
[1755450777389,2.94644447,193.53,193.52,2.93]
[1755450777691,2.94644447,193.53,193.52,4.60349836]
[1755450778291,7.66201285,193.53,193.52,4.60349836]
[1755450780400,7.66201285,193.53,193.5,4.60349836]
[1755450780601,2.91,193.51,193.5,1.67349836]
[1755450781098,2.91,193.51,193.5,4.60349836]
[1755450781599,2.91,193.52,193.45,2.93]
[1755450781797,2.91,193.5,193.44,115.48046713]
[1755450781998,2.91,193.48,193.42,1.67349836]
[1755450782192,2.91,193.46,193.42,1.67349836]
[1755450782398,2.91,193.44,193.42,1.67349836]
[1755450782593,2.91,193.44,193.42,4.60349836]
[1755450782805,0.03980278,193.46,193.42,1.67349836]
[1755450782996,2.91,193.45,193.42,1.67349836]
[1755450783398,1.67349836,193.5,193.42,1.67349836]
[1755450783594,0.03508888,193.45,193.42,1.67349836]
[1755450783799,2.91,193.44,193.42,1.67349836]
[1755450784001,2.91,193.44,193.42,4.60349836]
[1755450791321,2.91,193.44,193.42,1.67349836]
[1755450791521,2.91,193.44,193.43,2.93]
[1755450795927,2.91,193.44,193.42,2.93]
[1755450796724,2.91,193.44,193.41,2.93]
[1755450797316,2.91,193.44,193.42,1.67349836]
[1755450797517,2.91,193.44,193.43,2.75]
[1755450799317,3.04,193.43,193.41,1.67349836]
[1755450799826,3.04,193.43,193.42,2.75]
[1755450803931,3.04,193.44,193.41,4.42349836]
[1755450804324,3.04,193.44,193.42,2.75]
[1755450805332,3.04,193.44,193.41,1.67349836]
[1755450805537,3.04,193.44,193.43,2.75]
[1755450810134,3.04,193.44,193.41,1.67349836]
[1755450810436,3.04,193.44,193.42,2.75]
[1755450810631,3.04,193.44,193.43,2.75]
[1755450810833,3.04,193.44,193.42,2.75]
[1755450811227,3.04,193.44,193.43,2.75]
[1755450821139,4.33189186,193.44,193.43,2.75]
[1755450823141,12.96996415,193.44,193.43,2.75]
[1755450823342,12.96996415,193.44,193.37,5.1686]
[1755450823541,0.03508888,193.45,193.43,2.75]
[1755450823842,9.93009053,193.44,193.43,2.75]
[1755450824029,12.97009053,193.44,193.43,2.75]
[1755450825943,8.27068293,193.44,193.43,2.75]
[1755450826137,12.97716054,193.44,193.43,2.75]
[1755450826343,12.97720151,193.44,193.43,2.75]
[1755450826546,12.97720151,193.44,193.4,1.67349836]
[1755450826547,3.04,193.43,193.4,2.75]
[1755450826737,4.33193324,193.42,193.41,2.75]
[1755450827342,9.03887136,193.42,193.41,2.75]
[1755450827540,9.03887136,193.42,193.41,4.42349836]
[1755450829442,1.29193324,193.42,193.41,4.42349836]
[1755450830749,4.14193324,193.42,193.41,2.75]
[1755450830948,4.14193324,193.42,193.41,4.42349836]
[1755450832051,4.14193324,193.42,193.41,2.75]
[1755450835346,4.14189268,193.42,193.41,2.75]
[1755450837852,1.29189268,193.42,193.41,2.75]
[1755450839049,4.14189268,193.42,193.41,2.75]
[1755450843361,2.85,193.42,193.41,2.75]
[1755450843548,4.1418805,193.42,193.41,2.75]
[1755450845158,8.08358797,193.42,193.41,4.42349836]
[1755450846651,8.08358797,193.42,193.41,2.75]
[1755450846850,8.08358797,193.42,193.41,4.42349836]
[1755450850664,3.94170747,193.42,193.41,4.42349836]
[1755450850857,3.94170747,193.42,193.41,2.75]
[1755450851161,6.79170747,193.42,193.41,4.42349836]
[1755450851555,8.08358973,193.42,193.41,4.66349836]
[1755450851955,4.14188226,193.42,193.41,2.99]
[1755450852253,1.29188226,193.42,193.39,1.67349836]
[1755450852460,0.03508888,193.45,193.39,4.66349836]
[1755450852659,2.85,193.43,193.39,1.67349836]
[1755450852961,2.85,193.41,193.39,4.66349836]
[1755450854061,2.85,193.41,193.39,2.99]
[1755450854459,2.85,193.41,193.39,4.66349836]
[1755450855060,2.85,193.44,193.39,1.67349836]
[1755450855657,2.85,193.44,193.39,4.66349836]
[1755450855862,2.85,193.44,193.4,2.99]
[1755450859059,2.85,193.44,193.33,126.3]
[1755450859254,2.85,193.44,193.39,2.94]
[1755450859562,2.85,193.44,193.4,2.94]
[1755450859762,2.85,193.44,193.41,2.94]
[1755450859963,0.03801123,193.43,193.41,2.94]
[1755450861065,2.86,193.42,193.41,2.94]
[1755450861259,2.86,193.42,193.39,2.94]
[1755450862766,2.86,193.42,193.38,1.67349836]
[1755450862966,2.86,193.42,193.4,2.94]
[1755450865769,2.86,193.42,193.39,2.94]
[1755450866378,2.86,193.42,193.4,2.94]
[1755450866774,2.86,193.42,193.39,2.94]
[1755450867576,2.86,193.41,193.4,1.67349836]
[1755450867777,2.86,193.41,193.4,4.61349836]
[1755450868878,2.86,193.41,193.4,2.94]
[1755450869075,2.86,193.41,193.4,4.61349836]
[1755450869775,2.86,193.41,193.4,2.94]
[1755450869984,2.86,193.41,193.4,4.61349836]
[1755450870682,0.03801123,193.43,193.4,1.67349836]
[1755450870885,0.03801123,193.43,193.42,4.61349836]
[1755450871082,0.03801123,193.43,193.38,5.1684]
[1755450871083,2.89801123,193.43,193.41,2.94]
[1755450871282,2.89801123,193.43,193.4,2.94]
[1755450871477,1.67349836,193.42,193.35,4.61349836]
[1755450871784,2.86,193.37,193.33,2.94]
[1755450871978,2.86,193.37,193.31,4.61349836]
[1755450872279,1.67349836,193.36,193.3,2.94]
[1755450872584,2.86,193.35,193.31,2.94]
[1755450873083,2.86,193.35,193.3,2.94]
[1755450874085,2.86,193.35,193.31,2.94]
[1755450874278,2.86,193.35,193.32,2.94]
[1755450874582,2.86,193.35,193.31,2.94]
[1755450875486,2.86,193.35,193.32,2.94]
[1755450876286,2.86,193.35,193.3,1.67349836]
[1755450876582,2.86,193.34,193.3,1.67349836]
[1755450876780,2.86,193.35,193.3,1.67349836]
[1755450876982,1.70900136,193.36,193.3,4.61349836]
[1755450877183,2.86,193.35,193.31,2.94]
[1755450877680,2.86,193.35,193.3,1.67349836]
[1755450877885,2.86,193.35,193.31,2.94]
[1755450879885,2.86,193.35,193.32,2.94]
[1755450880188,2.86,193.35,193.3,1.67349836]
[1755450880387,2.86,193.35,193.31,2.94]
[1755450880687,2.86,193.35,193.32,2.94]
[1755450881187,2.86,193.35,193.3,1.67349836]
[1755450881389,2.86,193.35,193.31,2.94]
[1755450882283,2.86,193.35,193.3,1.67349836]
[1755450882486,2.86,193.35,193.32,2.94]
[1755450888096,2.86,193.35,193.3,1.67349836]
[1755450888294,2.86,193.35,193.31,2.78]
[1755450888703,2.86,193.35,193.29,1.67349836]
[1755450888998,2.86,193.35,193.32,2.78]
[1755450893803,2.86,193.35,193.29,1.67349836]
[1755450894003,2.86,193.35,193.33,2.78]
[1755450897409,4.53349836,193.35,193.3,2.78]
[1755450897708,3.04,193.34,193.3,2.78]
[1755450898201,3.07405925,193.34,193.3,2.78]
[1755450898510,3.07405925,193.34,193.29,2.78]
[1755450899803,3.07405925,193.34,193.29,4.45349836]
[1755450899999,3.07405925,193.34,193.29,2.78]
[1755450900610,0.03405925,193.34,193.33,2.78]
[1755450901315,3.07405925,193.34,193.33,2.78]
[1755450902309,0.03405925,193.34,193.33,2.78]
[1755450902709,3.07405925,193.34,193.33,2.78]
[1755450904808,0.03405925,193.34,193.33,2.78]
[1755450905414,3.07405925,193.34,193.33,2.78]
[1755450905611,0.03405925,193.34,193.33,2.78]
[1755450906112,0.03405925,193.34,193.33,4.45349836]
[1755450906613,0.03405925,193.34,193.33,2.78]
[1755450907119,0.03405925,193.34,193.33,4.45349836]
[1755450909111,3.04,193.4,193.34,2.78]
[1755450909313,3.04,193.4,193.38,2.78]
[1755450909613,3.04,193.39,193.38,2.78]
[1755450911509,3.04,193.42,193.37,0.03633873]
[1755450912010,3.04,193.42,193.38,2.78]
[1755450913215,3.04,193.42,193.39,2.78]
[1755450916218,3.04,193.42,193.37,0.03633873]
[1755450916421,3.04,193.42,193.38,2.78]
[1755450916616,4.71349836,193.42,193.37,0.03633873]
[1755450916816,3.04,193.41,193.37,2.81633873]
[1755450917923,3.04,193.41,193.38,2.99]
[1755450921124,2.79,193.39,193.37,0.03633873]
[1755450921324,130.52349836,193.38,193.37,0.03633873]
[1755450926324,2.79,193.44,193.37,0.03633873]
[1755450926529,2.79,193.42,193.38,2.99]
[1755450927036,1.67349836,193.39,193.37,0.03633873]
[1755450927333,128.83,193.38,193.37,0.03633873]
[1755450928328,130.50349836,193.38,193.37,0.03633873]
[1755450930032,4.46349836,193.38,193.37,0.03633873]
[1755450930233,130.70349836,193.38,193.37,0.03633873]
[1755450932733,126.24,193.38,193.37,0.03633873]
[1755450932931,129.03,193.38,193.37,3.02633873]
[1755450933732,131.22349836,193.38,193.37,0.03633873]
[1755450933942,2.79,193.37,193.31,2.99]
[1755450934137,4.46349836,193.32,193.29,2.99]
[1755450934339,1.67349836,193.3,193.2,1.67349836]
[1755450934639,2.79,193.26,193.21,2.99]
[1755450934840,128.97,193.25,193.21,2.99]
[1755450935040,126.18,193.25,193.21,2.99]
[1755450935239,2.79,193.24,193.21,2.99]
[1755450935642,2.79,193.23,193.21,2.99]
[1755450936041,2.79,193.23,193.18,1.67349836]
[1755450936241,2.79,193.23,193.14,2.99]
[1755450936443,2.79,193.23,193.16,2.99]
[1755450936836,126.18,193.25,193.16,2.99]
[1755450937142,128.97,193.25,193.17,2.99]
[1755450938145,2.79,193.27,193.17,2.99]
[1755450938341,2.79,193.27,193.18,2.62441541]
[1755450938541,2.79,193.27,193.19,2.99]
[1755450939943,2.79,193.27,193.15,2.62441541]
[1755450940146,2.79,193.24,193.16,2.99]
[1755450940349,2.62441541,193.2,193.07,2.99]
[1755450940648,2.79,193.19,193.07,2.99]
[1755450940845,2.79,193.19,193.1,2.99]
[1755450941144,2.79,193.16,193.04,2.99]
[1755450942350,2.62441541,193.14,193.04,2.99]
[1755450942550,2.79,193.13,193.04,2.99]
[1755450942746,2.62441541,193.11,193.0,2.99]
[1755450942951,2.79,193.1,193.0,2.99]
[1755450943852,2.79,193.1,193.02,2.99]
[1755450944444,2.79,193.12,193.03,2.62441541]
[1755450944649,2.79,193.12,193.04,2.99]
[1755450945544,2.79,193.09,192.96,2.62441541]
[1755450945750,2.79,193.09,192.97,2.99]
[1755450946150,2.79,193.06,192.97,2.99]
[1755450949454,2.88,193.04,192.97,2.99]
[1755450950752,2.88,193.04,192.91,2.62441541]
[1755450950753,5.1797,192.96,192.91,2.62441541]
[1755450950956,5.1797,192.96,192.92,2.97]
[1755450951558,5.1795,192.97,192.92,2.97]
[1755450951753,0.03263497,192.96,192.92,2.97]
[1755450952155,5.18,192.95,192.92,2.97]
[1755450952362,0.03263497,192.96,192.92,2.97]
[1755450952553,2.91263497,192.96,192.92,2.97]
[1755450952750,5.1799,192.95,192.92,2.97]
[1755450953558,5.1801,192.94,192.92,2.97]
[1755450953858,0.03263497,192.96,192.92,2.97]
[1755450954360,5.1804,192.94,192.92,2.97]
[1755450955060,5.1799,192.95,192.92,2.97]
[1755450955359,0.03263497,192.96,192.92,2.97]
[1755450955655,0.03263497,192.96,192.86,5.1822]
[1755450955855,0.03263497,192.96,192.9,2.97]
[1755450956051,2.88,192.93,192.9,2.97]
[1755450956661,5.1809,192.91,192.9,2.97]
[1755450956957,2.88,192.92,192.84,5.1828]
[1755450957163,2.88,192.92,192.86,2.97]
[1755450957553,5.1817,192.89,192.86,2.97]
[1755450957758,2.91316318,192.91,192.81,2.97]
[1755450957957,2.91316318,192.91,192.85,2.97]
[1755450958157,2.88,192.91,192.85,2.97]
[1755450958557,2.91271573,192.9,192.85,2.97]
[1755450959163,0.03271573,192.9,192.85,2.97]
[1755450959359,0.03271573,192.9,192.87,2.97]
[1755450959861,2.88,192.89,192.86,2.62441541]
[1755450960056,122.46027706,192.98,192.87,2.97]
[1755450960260,2.88,192.97,192.84,2.62441541]
[1755450960458,2.88,192.97,192.85,2.97]
[1755450963863,2.88,192.94,192.78,0.90234922]
[1755450964067,2.88,192.94,192.85,2.62441541]
[1755450964265,2.88,192.94,192.86,2.97]
[1755450966265,2.88,192.94,192.84,2.97]
[1755450966772,2.88,192.9,192.84,2.97]
[1755450967073,0.03472828,192.91,192.85,2.97]
[1755450967467,2.88,192.89,192.85,2.97]
[1755450968076,2.91472828,192.91,192.85,2.97]
[1755450969273,0.03472828,192.91,192.88,2.97]
[1755450969671,2.88,192.93,192.88,2.97]
[1755450971275,2.88,192.92,192.88,2.97]
[1755450971576,2.88,192.97,192.88,2.97]
[1755450974076,2.88,192.97,192.89,2.62441541]
[1755450974275,2.88,192.99,192.93,2.97]
[1755450977970,2.88,192.99,192.83,79.69363563]
[1755450978180,2.88,192.99,192.85,5.54441541]
[1755450978380,2.88,192.99,192.86,2.92]
[1755450978583,127.94,192.98,192.86,2.92]
[1755450978782,2.86,192.97,192.86,2.92]
[1755450979985,2.86,192.97,192.89,2.92]
[1755450980480,2.86,192.97,192.92,2.92]
[1755450980876,2.86,193.0,192.92,2.92]
[1755450988986,2.86,193.0,192.92,8.1006]
[1755450989190,2.86,193.0,192.93,2.92]
[1755450989786,2.86,193.0,192.94,2.92]
[1755450991192,2.86,193.0,192.94,8.1001]
[1755450991393,2.86,193.0,192.95,2.92]
[1755450991695,2.86,193.08,192.96,2.62441541]
[1755450991895,130.9,193.08,192.97,2.92]
[1755450992189,130.9,193.08,193.0,2.92]
[1755450992190,2.86,193.07,193.0,2.92]
[1755450992385,2.86,193.07,193.02,2.92]
[1755450992583,2.86,193.08,193.0,2.62441541]
[1755450992790,2.86,193.08,193.01,2.92]
[1755450994494,0.51024,193.09,193.01,2.92]
[1755450994683,0.51024,193.09,193.04,2.92]
[1755450994888,3.37024,193.09,193.04,2.92]
[1755450995493,2.86,193.08,193.04,2.92]
[1755450995693,0.51024,193.09,193.04,2.92]
[1755450995894,2.86,193.07,193.04,2.92]
[1755450996492,2.86,193.08,193.04,2.92]
[1755450996694,2.86,193.07,193.02,2.62441541]
[1755450996885,2.86,193.07,193.06,2.92]
[1755450999692,2.86,193.08,193.04,2.92]
[1755451001194,2.86,193.08,193.02,2.92]
[1755451004001,2.86,193.08,193.03,2.62441541]
[1755451004202,0.51024,193.09,193.04,2.92]
[1755451004503,0.51024,193.09,193.06,2.62441541]
[1755451004703,0.51024,193.09,193.07,2.92]
[1755451004904,3.37024,193.09,193.08,2.92]
[1755451007000,3.37024,193.09,193.03,2.92]
[1755451010410,3.37024,193.09,193.0,7.80291541]
[1755451010605,3.37024,193.09,192.97,2.62441541]
[1755451010805,3.37024,193.09,192.98,3.02]
[1755451011511,3.37024,193.09,192.98,8.1988]
[1755451011710,3.37024,193.09,192.99,3.02]
[1755451012912,3.37024,193.09,193.0,3.02]
[1755451013515,3.37024,193.09,193.0,5.64441541]
[1755451014113,3.37024,193.09,193.01,3.02]
[1755451014915,3.37024,193.09,193.04,3.02]
[1755451015314,0.51024,193.09,193.04,3.02]
[1755451015613,3.0,193.07,193.04,3.02]
[1755451015815,3.0,193.08,193.03,2.62441541]
[1755451016114,3.0,193.08,193.05,3.02]
[1755451017215,3.0,193.07,193.01,7.80241541]
[1755451017412,3.0,193.07,193.06,3.02]
[1755451017614,3.51024,193.09,193.03,3.02]
[1755451019517,3.51024,193.09,193.03,8.1977]
[1755451019816,3.51024,193.09,193.04,3.02]
[1755451020016,0.51024,193.09,193.04,3.02]
[1755451020213,0.51024,193.09,193.05,2.62441541]
[1755451020415,0.51024,193.09,193.08,5.64441541]
[1755451020711,3.0,193.21,193.08,2.62441541]
[1755451020908,3.0,193.21,193.09,3.02]
[1755451021105,3.0,193.21,193.11,2.62441541]
[1755451021304,3.0,193.21,193.12,3.02]
[1755451021509,3.0,193.21,193.15,3.02]
[1755451021917,348.04,193.25,193.16,3.02]
[1755451022118,3.0,193.2,193.16,3.02]
[1755451022618,3.0,193.2,193.16,5.1742]
[1755451022915,3.0,193.19,193.18,3.02]
[1755451024114,3.0,193.22,193.17,3.02]
[1755451024319,3.0,193.3,193.18,3.02]
[1755451025017,3.0,193.25,193.18,3.02]
[1755451025318,3.0,193.25,193.18,8.1937]
[1755451025619,3.0,193.25,193.19,3.02]
[1755451033222,3.0,193.25,193.17,7.79841541]
[1755451033521,3.0,193.25,193.18,3.02]
[1755451034218,2.62441541,193.22,193.03,10.3551]
[1755451034423,3.0,193.21,193.12,3.02]
[1755451034922,0.03641345,193.18,193.12,3.02]
[1755451035117,3.0,193.17,193.12,3.02]
[1755451035721,3.0,193.16,193.12,3.02]
[1755451037223,0.03641345,193.18,193.12,3.02]
[1755451037425,3.0,193.15,193.12,3.02]
[1755451037621,3.01,193.17,193.07,2.62441541]
[1755451037926,3.01,193.17,193.08,2.83]
[1755451038426,3.01,193.13,193.08,2.83]
[1755451038626,3.01,193.12,193.08,2.83]
[1755451039626,3.01,193.11,193.08,2.83]
[1755451039821,0.03724687,193.14,193.06,2.83]
[1755451040127,3.01,193.09,193.06,2.83]
[1755451040528,3.04552764,193.09,193.06,2.83]
[1755451042935,0.03552764,193.09,193.06,2.83]
[1755451044134,0.03552764,193.09,193.08,8.0064]
[1755451044331,0.03552764,193.09,193.08,10.63081541]
[1755451044532,2.62441541,193.21,193.08,2.62441541]
[1755451044730,3.01,193.09,193.05,2.62441541]
[1755451045035,3.01,193.09,193.08,2.83]
[1755451045530,3.01,193.09,193.06,2.83]
[1755451045837,3.01,193.08,193.07,2.83]
[1755451047039,3.04625241,193.1,193.07,2.83]
[1755451047542,0.03625241,193.1,193.09,2.83]